Cogmind - Beta 14 @@@ ROGUE MODE // 2025.03.08 @ 11:48:14 Player: Cog on my mind Result: Heading to fleet! Performance ------------- Evolutions (9) 4500 Regions Visited (21) 4200 Robots Destroyed (372) 1860 Value Destroyed (16842) 16842 Prototype IDs (100) 2000 Alien Tech Used (3) 600 Bonus (21457) 21457 TOTAL SCORE: 51459 Bonus ------- High Alert Combat Kills 2570 Follower Combat Kills 1205 Network Hubs Disabled 800 Aligned with FarCom 300 Met R17 at Cetus 500 Bested VL-GR5 5000 Found Hidden Lab 3000 Used Core Reset Matrix 3000 Met R17 at Research 2000 Pursued by Intercept 500 Win 3000 Friendly Fire -418 Cogmind --------- Core Integrity 1248/1600 Matter 300/300 Energy 477/482 System Corruption 11% Temperature Cool (7) Movement Treading (174) Ox1 Location To Fleet Rendezvous Parts ------- > --- POWER (3) -------- Multi-Quantum Reactor > --- PROPULSION (7) --- Treaded Gyrokinetic-Centrium Exoskeleton > --- UTILITY (12) ----- Armored Scrap Engine Experimental Heat Sink Huge Storage Unit Advanced Terrain Scan Processor Advanced Targeting Computer Core Analyzer Centrium Medium Armor Plating Experimental Powered Armor Improved Focal Shield Quantum Router Long-range Tractor Beam > --- WEAPON (3) ------- Hvy. Thermic Nova Construct/C > --- INVENTORY (25) --- Experimental Energy Well (600) Advanced Matter Compressor (400) Long-range Terrain Scanner Advanced Targeting Computer Advanced Targeting Computer Improved Armor Integrity Analyzer Improved Kinecellerator VL-GR5's Timing Chip Quantum Capacitor Advanced Reaction Control System Advanced Phase Shifter Experimental Thermal Shield Antimissile System Trap Reconfigurator Mini Drone Bay (2/3) Transdimensional Reconstructor Improved Plasma Cutter Peak State ------------ > --- POWER ------------ Multi-Quantum Reactor > --- PROPULSION ------- Myomer Leg Treaded Gyrokinetic-Centrium Exoskeleton > --- UTILITY ---------- Armored Scrap Engine Huge Storage Unit Long-range Terrain Scanner Advanced Targeting Computer Core Analyzer Improved Kinecellerator Advanced Force Field Experimental Hacking Suite Experimental Hacking Suite Quantum Router > --- WEAPON ----------- Hyp. Accelerated Construct/C > --- INVENTORY -------- Electron Diverter Experimental Cryofiber Web Experimental Heat Sink Experimental Energy Well Advanced Matter Compressor Advanced Terrain Scan Processor Improved Armor Integrity Analyzer VL-GR5's Timing Chip Quantum Capacitor Advanced Reaction Control System Advanced Phase Shifter Centrium Medium Armor Plating Experimental Powered Armor Experimental Thermal Shield Antimissile System Authchip [Device] Authchip [Processor] Authchip [Armor] Long-range Tractor Beam Trap Reconfigurator Mini Drone Bay Transdimensional Reconstructor Fusion Bomb Launcher Improved Plasma Cutter [Rating: 189] Favorites ----------- Power Constructs Engine Ion Engine Power Core Nuclear Core Reactor Constructs Propulsion Constructs Treads Constructs Leg Myomer Leg Wheel Wheel Hover Unit Combat Linear Gravjet Utility Armored Scrap Engine Device Armored Scrap Engine Storage High-capacity Storage Unit Processor Advanced Targeting Computer Hackware Advanced Hacking Suite Protection Hardened Light Armor Plating Weapon Constructs Energy Gun Particle Gun Energy Cannon Constructs Ballistic Gun Enhanced Autogun Ballistic Cannon Constructs Launcher Fusion Bomb Launcher Special Weapon Improved Plasma Cutter Slashing Weapon Katana Build | -11 -10 -10 -10 -9 -8 -8 -8 -6 -5 -5 -5 -5 -5 -4 -4 -4 -4 -4 -3 -2 -1 ------- Run | Yrd Mat Min Exi Min Mat Sto Rec Fac Fac Ext Cet Arc Hub Fac Was Fac Arm Lab Res Res Acc Slots Evolved 18 | . . . . . 4 . . 4 2 . . . . 2 . . . . 2 2 2 Power 2 | . . . . . 1 . . . . . . . . 1 . . . . . . . Propulsion 5 | . . . . . 1 . . 2 1 . . . . . . . . . . . 1 Utility 10 | . . . . . 1 . . 2 1 . . . . 1 . . . . 2 2 1 Weapon 1 | . . . . . 1 . . . . . . . . . . . . . . . . Parts Attached 327 | 7 7 . 4 8 20 40 2 22 20 2 1 2 1 7 5 37 10 12 60 28 32 Power 11 | 1 2 . 1 1 2 3 . . . . . . . . . . . 1 . . . Engine 8 | 1 2 . 1 . 2 2 . . . . . . . . . . . . . . . Core 2 | . . . . 1 . 1 . . . . . . . . . . . . . . . Reactor 1 | . . . . . . . . . . . . . . . . . . 1 . . . Propulsion 21 | 2 1 . 2 . 5 4 1 2 . . . . . . . . . . . 4 . Treads 11 | 2 1 . 1 . 3 4 . . . . . . . . . . . . . . . Leg 3 | . . . . . . . . . . . . . . . . . . . . 3 . Wheel 6 | . . . 1 . 2 . 1 2 . . . . . . . . . . . . . Hover 1 | . . . . . . . . . . . . . . . . . . . . 1 . Flight . | . . . . . . . . . . . . . . . . . . . . . . Utility 221 | 2 2 . 1 4 5 3 1 17 20 1 1 2 1 6 4 36 8 9 47 23 28 Device 172 | 1 1 . . 1 2 1 1 12 18 1 1 1 . 5 3 30 6 3 39 22 24 Storage 11 | 1 1 . 1 1 . . . . . . . . . 1 1 3 . 1 . . 1 Processor 16 | . . . . 1 . . . 2 1 . . . . . . 2 1 1 7 . 1 Hackware 11 | . . . . . . . . 3 1 . . . 1 . . 1 1 3 . 1 . Protection 11 | . . . . 1 3 2 . . . . . 1 . . . . . 1 1 . 2 Artifact . | . . . . . . . . . . . . . . . . . . . . . . Weapon 74 | 2 2 . . 3 8 30 . 3 . 1 . . . 1 1 1 2 2 13 1 4 Energy Gun 13 | 1 . . . 1 1 3 . . . . . . . . . . 1 1 4 . 1 Energy Cannon 5 | . . . . . 3 1 . . . . . . . . . . . . 1 . . Ballistic Gun 28 | 1 2 . . 2 2 17 . . . . . . . . . . . . 4 . . Ballistic Cannon 4 | . . . . . 2 . . . . . . . . . . . . . 2 . . Launcher 15 | . . . . . . 1 . 3 . 1 . . . 1 1 1 1 . 2 1 3 Special Weapon 1 | . . . . . . . . . . . . . . . . . . 1 . . . Impact Weapon . | . . . . . . . . . . . . . . . . . . . . . . Slashing Weapon 8 | . . . . . . 8 . . . . . . . . . . . . . . . Piercing Weapon . | . . . . . . . . . . . . . . . . . . . . . . Special Melee Weapon . | . . . . . . . . . . . . . . . . . . . . . . Unidentified Prototypes 36 | . . . . . 3 7 1 1 1 . . 1 . . 2 3 3 9 4 1 . Corrupted Parts 2 | . . . . 2 . . . . . . . . . . . . . . . . . System Corruption 15 | . . . . 15 . . . . . . . . . . . . . . . . . Parts Lost 18 | . 1 . . . . 2 2 1 . . 1 . . . . 2 1 . . 2 6 Power 4 | . . . . . . 1 1 . . . . . . . . 1 . . . . 1 Propulsion 1 | . . . . . . 1 . . . . . . . . . . . . . . . Utility 9 | . . . . . . . 1 1 . . 1 . . . . 1 1 . . 1 3 Weapon 4 | . 1 . . . . . . . . . . . . . . . . . . 1 2 Highest Loss Streak 6 | . 1 . . . . 1 2 1 . . 1 . . . . 1 1 . . 1 6 To Critical Strikes . | . . . . . . . . . . . . . . . . . . . . . . Average Slot Usage (%) 63 | . 100 100 73 99 98 99 74 46 46 47 48 47 47 47 46 46 42 42 51 56 58 Engine 5 | . 14 14 14 8 9 12 8 6 5 5 3 . . . . . . . . . . Core 1 | . . . . 5 7 5 4 . . . . . . . . . . . . . . Reactor 1 | . . . . . . . . . . . 1 5 5 5 5 5 4 4 4 4 4 Treads 8 | . 28 28 23 14 19 18 15 . 1 . . 5 5 5 5 5 2 . . . 2 Leg 1 | . . . . . . . 2 4 . . 2 . . . . . 1 . . 2 1 Wheel 1 | . . . 4 14 7 8 . . . . . . . . . . . . . . . Device 10 | . 14 14 14 7 . . 4 14 11 11 11 11 5 9 8 10 15 13 8 16 15 Storage 6 | . 14 14 14 13 9 9 9 6 5 5 5 5 5 5 5 5 4 4 4 4 4 Processor 4 | . . . . . 9 9 4 . 4 5 5 5 5 5 5 4 . 1 8 8 11 Hackware 5 | . . . . . . . . 4 5 5 5 5 10 10 10 9 7 7 14 13 11 Protection 1 | . . . . 5 8 8 4 . . . . . . . . . . . . . . Energy Cannon 1 | . . . . . 7 . 1 . . . 1 5 1 . . . 1 4 1 . 1 Ballistic Gun 6 | . 23 28 2 22 1 25 15 . . . . . . . . . . . . . 1 Ballistic Cannon 3 | . . . . . 15 . 2 6 5 5 3 . 3 5 5 5 2 . 2 4 2 Peak Build Rating 189 | 7 8 9 9 16 36 40 53 85 96 96 111 114 112 128 138 143 156 158 173 189 188 Average Rating 90 | 5 7 8 7 11 32 38 43 73 88 90 98 111 112 120 131 133 140 151 165 179 181 On Entrance 82 | . 7 8 9 8 15 35 38 52 80 90 91 111 112 112 127 133 132 149 155 165 176 Naked Turns . | . . . . . . . . . . . . . . . . . . . . . . Heaviest Build 184 | 12 18 18 46 52 72 72 69 72 70 69 80 80 80 131 141 139 136 147 150 184 171 Greatest Support 267 | 40 40 40 40 10 69 66 66 66 88 132 205 205 205 205 205 267 267 257 199 199 144 Greatest Overweight (x) 7 | . . . 4 5 7 7 5 6 1 . . . . . . . . . . 1 1 Average Overweight (x) . | . . . 1 4 2 5 1 1 . . . . . . . . . . . . 1 Largest Inventory Capacity 25 | 8 10 10 20 20 20 20 20 20 20 20 20 20 20 25 25 25 25 25 25 25 25 Average Capacity 20 | 7 8 10 12 19 20 20 20 20 20 20 20 20 20 20 25 25 25 25 25 25 25 Most Carried 25 | . 9 10 11 11 20 20 20 20 20 20 20 20 20 20 25 25 25 25 25 25 25 Average Carried 19 | . 3 8 10 9 17 19 19 19 19 19 19 19 20 19 24 24 24 24 24 24 23 Final Capacity 25 | 8 10 10 20 20 20 20 20 20 20 20 20 20 20 25 25 25 25 25 25 25 25 Final Carried 25 | . 8 10 11 11 20 20 18 19 20 20 19 20 20 20 24 21 25 25 25 23 18 Scrap Engine Consumption 224 | . . . . . . . 24 28 18 10 15 5 3 10 4 4 42 4 15 20 22 Constructs Created 7 | . . . . . . . 3 . . . 1 1 . . . . 1 . . 1 . Constructs Modified 76 | . . . . . . . 5 10 7 1 6 . 1 4 2 2 16 3 5 8 6 Class Distribution -------------------- 32% | Hacker-Construct 24% | Construct 14% | Mutant 11% | Commander-Construct 9% | Skirmisher 7% | Commander-Skirmisher Dominant Class ---------------- Mutant | -10/Materials Mutant | -10/Mines Mutant | -10/Exiles Mutant | -9/Mines Skirmisher | -8/Materials Skirmisher | -8/Storage Commander-Skirmisher | -8/Recycling Construct | -6/Factory Construct | -5/Factory Commander-Construct | -5/Extension Commander-Construct | -5/Cetus Commander-Construct | -5/Archives Hacker-Construct | -5/Hub_04(d) Hacker-Construct | -4/Factory Hacker-Construct | -4/Waste Hacker-Construct | -4/Factory Hacker-Construct | -4/Armory Construct | -4/Lab Hacker-Construct | -3/Research Hacker-Construct | -2/Research Hacker-Construct | -1/Access Resources | -11 -10 -10 -10 -9 -8 -8 -8 -6 -5 -5 -5 -5 -5 -4 -4 -4 -4 -4 -3 -2 -1 ----------- Run | Yrd Mat Min Exi Min Mat Sto Rec Fac Fac Ext Cet Arc Hub Fac Was Fac Arm Lab Res Res Acc Matter Collected 11496 | 275 284 8 70 58 445 1308 381 1003 1512 449 185 74 193 304 752 986 1047 78 600 228 1256 Remotely 755 | . . . . . . . . . . . . . . . . . . . . 15 740 Salvage Created 20410 | 69 773 37 . 62 612 1537 652 1560 1468 1467 249 194 244 441 961 1833 1937 78 1435 3364 1437 Parts 946 | 6 46 4 . . 40 108 20 72 60 66 14 7 17 16 20 73 78 7 64 159 69 Haulers Intercepted 18 | . 1 . . . 2 4 . 1 1 . . . . 2 . 2 . . 1 4 . Recyclers Shooed 4 | . . . . . . . 1 . . . . . . . . 2 . . . 1 . Parts Field Recycled . | . . . . . . . . . . . . . . . . . . . . . . Retrieved Matter . | . . . . . . . . . . . . . . . . . . . . . . Parts Self-Destructed . | . . . . . . . . . . . . . . . . . . . . . . Prevented . | . . . . . . . . . . . . . . . . . . . . . . Kills | -11 -10 -10 -10 -9 -8 -8 -8 -6 -5 -5 -5 -5 -5 -4 -4 -4 -4 -4 -3 -2 -1 ------- Run | Yrd Mat Min Exi Min Mat Sto Rec Fac Fac Ext Cet Arc Hub Fac Was Fac Arm Lab Res Res Acc Combat Hostiles Destroyed 270 | . 16 3 . 1 13 21 10 23 18 24 4 2 1 6 4 20 28 1 19 33 23 Guns 55 | . 16 3 . 1 4 21 10 . . . . . . . . . . . . . . Cannons 167 | . . . . . 9 . . 13 18 20 4 2 1 1 4 14 26 1 12 28 14 AOE 47 | . . . . . . . . 9 . 4 . . . 5 . 6 2 . 7 5 9 Classes Destroyed 24 | 2 6 . . . 2 1 4 2 1 1 . . . . 1 . 1 . 2 . 1 Worker 24 | . 1 . . 1 . 3 . 1 2 . . . 3 . . 4 . . 2 3 4 Builder 8 | . . . . . . 2 . . 1 . . . . . . . . . 1 4 . Tunneler 2 | 1 . . . . . . . . . . . . . . . . . . . 1 . Hauler 18 | . 1 . . . 2 4 . 1 1 . . . . 2 . 2 . . 1 4 . Recycler 16 | 1 . . . . 1 2 1 3 . . . . 1 . . 3 . . 1 3 . Mechanic 5 | . . . . . 1 1 . . 1 . . . . 1 . . . . . . 1 Operator 4 | . 2 . . . 1 . . . . . . . . . . 1 . . . . . Watcher 23 | . 3 . . . 2 2 . 3 3 2 . . 1 2 . 1 1 . 1 2 . Swarmer 57 | . 2 3 . . 8 3 . 8 . 6 . . . 5 . 4 . . 7 8 3 Cutter 1 | . . . . . . . . . . . . . . . . . 1 . . . . Grunt 96 | . 14 . . 1 3 7 3 7 12 2 . . . . . 7 12 . 3 15 10 Brawler 3 | . . . . . . . . . 2 . . . . . . . . . 1 . . Duelist 6 | . . . . . . . 1 . . 1 . . . . . 1 1 . . . 2 Sentry 48 | . . . . . 2 11 3 2 1 11 . 2 . 1 . 2 6 . 5 . 2 Demolisher 1 | . . . . . . . . . . 1 . . . . . . . . . . . Specialist 1 | . . . . . . . . . . . . . . . . . . . . . 1 Hunter 9 | . . . . . . . . 2 . . . . 1 . . . 3 . 1 2 . Programmer 31 | . . . . . . . 1 3 3 1 . . . . . 6 6 . . 7 4 Heavy 2 | . . . . . . . . 1 . . . . . . . . . . . . 1 Behemoth 2 | . . . . . . . . . . . . . . . . . . . 1 1 . Compactor 4 | . . . . . . . . . . . . . . . 4 . . . . . . Cetus Guard 4 | . . . . . . . . . . . 4 . . . . . . . . . . Striker 1 | . . . . . . . . . . . . . . . . . . . 1 . . Scientist 1 | . . . . . . . 1 . . . . . . . . . . . . . . Scrapper 2 | . . . . . . . 2 . . . . . . . . . . . . . . Thug 2 | . . . . . 1 . . . . 1 . . . . . . . . . . . Savage 1 | . . . . . . . . . . 1 . . . . . . . . . . . Best Kill Streak 14 | 2 5 3 . 2 5 6 3 5 4 7 2 2 2 5 2 5 6 1 8 13 14 Combat Bots Only 9 | . 5 3 . 1 4 4 3 4 4 7 2 2 1 5 2 4 6 1 5 9 9 Max Kills in Single Turn 5 | 1 1 1 . 2 2 2 2 3 1 4 1 1 1 2 1 3 2 1 5 3 2 Gunslinging 1 | . . . . . 1 . 1 . . . . . . . . . . . . . . Exploded 4 | . . . . . . . . 3 . 4 . . . 2 . 2 1 . 3 3 2 Melee . | . . . . . . . . . . . . . . . . . . . . . . Uniques/NPCs Destroyed 1 | . . . . . . . . . . . . . . . . . . 1 . . . A5 (-4/Lab) Combat | -11 -10 -10 -10 -9 -8 -8 -8 -6 -5 -5 -5 -5 -5 -4 -4 -4 -4 -4 -3 -2 -1 -------- Run | Yrd Mat Min Exi Min Mat Sto Rec Fac Fac Ext Cet Arc Hub Fac Was Fac Arm Lab Res Res Acc Hostile Shots Fired 1267 | . 64 7 . 7 31 65 26 137 46 64 16 3 30 25 . 151 99 34 41 211 210 Missed 424 | . 16 3 . 4 6 13 5 47 22 29 6 . 8 13 . 62 34 9 16 63 68 Damage Taken 16086 | . 520 117 . 40 304 823 381 1113 444 574 272 57 588 279 24 2025 1444 642 742 2336 3361 Core 1426 | . 88 48 . 10 27 75 104 87 . 31 . . 66 . . 149 110 80 75 124 352 Absorbed by Shields 2272 | . . . . . . . . . 18 207 96 22 . 16 . 208 512 . . 667 526 Ignored by Resistances 337 | . . . . . . . . . . . . . . . . . . . . 210 127 Regen/Repaired (Parts) 8403 | . . . . . . . 5 586 418 197 458 5 147 269 110 1255 1698 695 620 1365 575 Core Remaining (%) 82 | 100 . . . 41 . . 62 89 . . . . 90 . . . . 95 94 91 78 Volleys Fired 1041 | 5 73 4 . 5 24 74 31 58 71 47 20 6 25 35 51 113 115 30 58 100 96 Largest 3 | 2 2 2 . 2 3 3 3 1 1 1 1 1 1 1 1 1 1 1 1 1 2 Hottest 163 | 70 70 40 . 85 163 163 80 80 80 80 80 115 115 127 127 127 127 78 78 52 136 Shots Fired 1357 | 10 144 8 . 10 67 222 74 58 71 47 20 6 25 35 51 113 113 29 58 100 96 Gun 468 | 10 144 8 . 10 10 216 69 . . . . . . . . . . . . . 1 Cannon 853 | . . . . . 57 6 5 52 71 46 20 6 25 31 51 111 109 29 55 97 82 Launcher 36 | . . . . . . . . 6 . 1 . . . 4 . 2 4 . 3 3 13 Special . | . . . . . . . . . . . . . . . . . . . . . . Kinetic 1056 | 5 115 8 . 9 43 220 64 51 71 46 20 . 21 31 47 67 73 . 33 97 35 Thermal 260 | 5 29 . . 1 24 2 5 1 . . . 6 4 . 4 44 36 29 22 . 48 Explosive 34 | . . . . . . . . 6 . 1 . . . 4 . . 4 . 3 3 13 Electromagnetic 7 | . . . . . . . 5 . . . . . . . . 2 . . . . . Robot Hit Streak 17 | 4 17 3 . 3 11 17 12 10 8 16 8 6 7 8 9 13 8 10 11 12 11 Robot Miss Streak 7 | 2 3 2 . 1 2 3 2 2 1 3 2 2 3 1 2 7 4 2 2 3 2 Penetration Max 2 | . . . . . . . . . 1 1 . . 1 . . 1 1 . 1 2 . Secondary Targets 7 | . . 2 . . 1 1 3 . . . . . . . . . . . . . . Max Gunslinging Chain 1 | . . 1 . . 1 1 1 . . . . . . . . . . . . . . Shots Hit Robots 855 | 7 96 4 . 6 35 142 56 40 49 38 13 4 10 19 36 54 66 18 36 63 63 Core Hits 461 | 4 49 3 . 5 30 55 17 27 18 23 4 2 6 12 6 37 30 4 26 49 54 Critical Kills 3 | . . . . . . . 1 . . . . . . . . . . . . 1 1 Critical Parts Destroyed 8 | . . . . . . 1 2 . . 2 . . . . . . . . . 2 1 Critical Strikes 15 | . 1 . . . 3 1 3 . . 2 . . . . . . . . . 3 2 Burn 2 | . 1 . . . 1 . . . . . . . . . . . . . . . . Destroy 11 | . . . . . . 1 3 . . 2 . . . . . . . . . 3 2 Blast 2 | . . . . . 2 . . . . . . . . . . . . . . . . Melee Attacks 9 | . . . . . . 9 . . . . . . . . . . . . . . . Impact . | . . . . . . . . . . . . . . . . . . . . . . Slashing 9 | . . . . . . 9 . . . . . . . . . . . . . . . Piercing . | . . . . . . . . . . . . . . . . . . . . . . Sneak Attacks . | . . . . . . . . . . . . . . . . . . . . . . Combat Hostiles . | . . . . . . . . . . . . . . . . . . . . . . Follow-up Attacks . | . . . . . . . . . . . . . . . . . . . . . . Damage Inflicted 62994 | 76 855 33 . 68 866 2551 1388 4208 6249 5414 1436 360 1095 2070 3038 6448 7735 1364 4056 6793 6891 Guns 4686 | 76 855 33 . 68 74 2510 1042 . . . . . . . . . . . . . 28 Cannons 50057 | . . . . . 792 38 346 3351 6249 5122 1436 360 1095 1579 3038 5388 7143 1364 2978 6320 3458 Explosions 8225 | . . . . . . . . 857 . 292 . . . 491 . 1047 592 . 1078 463 3405 Melee . | . . . . . . . . . . . . . . . . . . . . . . Ramming 26 | . . . . . . 3 . . . . . . . . . 13 . . . 10 . Kinetic 41852 | 26 653 33 . 50 444 2523 926 3351 6249 5122 1436 . 765 1579 2757 2872 4514 . 1414 6320 818 Thermal 13261 | 50 202 . . 18 422 25 346 . . . . 360 330 . 281 3002 2629 1364 1564 . 2668 Explosive 7506 | . . . . . . . . 857 . 292 . . . 491 . 328 592 . 1078 463 3405 Electromagnetic 349 | . . . . . . . 116 . . . . . . . . 233 . . . . . Impact . | . . . . . . . . . . . . . . . . . . . . . . Slashing . | . . . . . . . . . . . . . . . . . . . . . . Piercing . | . . . . . . . . . . . . . . . . . . . . . . Highest Corruption 19 | . . 1 1 16 . 1 1 4 2 . . . 2 . . 3 12 19 . 4 11 Average Corruption 3 | . . 1 1 1 . 1 1 3 1 . . . 1 . . 2 7 16 . 2 2 Corruption Purged 6 | . . . . . . . . 4 2 . . . . . . . . . . . . Corruption Blocked . | . . . . . . . . . . . . . . . . . . . . . . Effects 135 | . . . 3 3 . . 15 28 10 . . . . . . 6 42 11 . 7 10 Message Errors 26 | . . . 1 . . . 3 5 4 . . . . . . . 6 4 . 2 1 Matter Fused 41 | . . . . . . . 5 8 4 . . . . . . 2 16 2 . 1 3 Heat Flow Errors 16 | . . . . 1 . . 2 2 1 . . . . . . 1 3 3 . . 3 Energy Discharges 13 | . . . 1 . . . 3 2 . . . . . . . 1 4 . . 1 1 Parts Rejected 3 | . . . . . . . . . . . . . . . . 1 1 . . . 1 Parts Fused 3 | . . . . . . . . 2 . . . . . . . . 1 . . . . Data Loss (minor) 11 | . . . 1 1 . . . 4 1 . . . . . . . 3 . . 1 . Data Loss (major) 12 | . . . . 1 . . . 3 . . . . . . . 1 4 1 . 2 . Misfires 1 | . . . . . . . 1 . . . . . . . . . . . . . . Alerts 4 | . . . . . . . 1 2 . . . . . . . . 1 . . . . Misdirections 1 | . . . . . . . . . . . . . . . . . 1 . . . . Weapon Failures 4 | . . . . . . . . . . . . . . . . . 2 1 . . 1 Overload Shots . | . . . . . . . . . . . . . . . . . . . . . . Overflow Damage 6482 | . . . . . . . 92 743 1515 507 90 . 140 147 . 1060 997 23 190 640 338 Projectiles 6062 | . . . . . . . 92 680 1515 507 90 . 140 147 . 989 989 23 91 619 180 Explosions 420 | . . . . . . . . 63 . . . . . . . 71 8 . 99 21 158 Melee . | . . . . . . . . . . . . . . . . . . . . . . Knockbacks 98 | . . . . . 11 . . 8 16 1 2 . 1 3 . 12 16 . . 26 2 Impact 1 | . . . . . . . . . . . . . . . . 1 . . . . . Kinetic 90 | . . . . . 11 . . 6 15 1 2 . 1 2 . 11 16 . . 23 2 Secondary 7 | . . . . . . . . 2 1 . . . . 1 . . . . . 3 . Self-Inflicted Damage 495 | . . . . . . 1 . 144 . . . . . 57 . 119 49 . . . 125 Shots 8 | . . . . . . . . 2 . . . . . 1 . 2 1 . . . 2 Rammed 2 | . . . . . . 1 . . . . . . . . . 1 . . . . . Targets Rammed 3 | . . . . . . 1 . . . . . . . . . 1 . . . 1 . Kicked 1 | . . . . . . . . . . . . . . . . . . . . 1 . Crushed . | . . . . . . . . . . . . . . . . . . . . . . Highest Temperature 447 | 70 176 . . 255 447 386 261 340 292 288 320 358 441 364 322 373 335 198 328 145 411 Average Temperature 100 | 36 44 . . 80 123 121 80 99 94 85 114 155 174 127 124 96 99 100 70 41 116 Received Heat Transfer 2424 | . 228 . . 24 153 324 129 174 144 99 24 . 63 42 27 160 231 . 66 198 338 Effects 30 | . . . . . 3 10 . . 5 . 1 . 3 5 . 1 2 . . . . Shutdowns 8 | . . . . . 2 2 . . . . . . 1 2 . . 1 . . . . Energy Bleed 7 | . . . . . . 3 . . 1 . 1 . 1 . . . 1 . . . . Interference 10 | . . . . . . 3 . . 4 . . . . 3 . . . . . . . Matter Decay 2 | . . . . . . 1 . . . . . . . . . 1 . . . . . Short Circuit 1 | . . . . . . 1 . . . . . . . . . . . . . . . Damage (minor) 2 | . . . . . 1 . . . . . . . 1 . . . . . . . . Siege Activations 1 | . . . . . . . . . . . . . . 1 . . . . . . . Total Turns 2 | . . . . . . . . . . . . . . 2 . . . . . . . Longest Duration 2 | . . . . . . . . . . . . . . 2 . . . . . . . Robots Corrupted 4 | . . . . . . . 1 . 1 . . . . . . . . . . 2 . Combat Hostiles . | . . . . . . . . . . . . . . . . . . . . . . Parts Fried 7 | . . . . . . . 2 . . . . . . . . . . . . 5 . Impact Corruptions 6 | . . . . . . . . . 2 . . . . . . . . . . 4 . Robots Melted . | . . . . . . . . . . . . . . . . . . . . . . Combat Hostiles . | . . . . . . . . . . . . . . . . . . . . . . Parts Melted 13 | . 2 . . . 2 . . 3 . 1 . . . . . 2 3 . . . . Heat Transferred 6829 | 148 666 . . 37 740 37 185 . . . . 148 148 . 111 1225 851 609 592 . 1332 Parts Sabotaged 1 | . . . . . . . . . . . . . . . . . . . . 1 . Parts Stolen . | . . . . . . . . . . . . . . . . . . . . . . Parts Stripped . | . . . . . . . . . . . . . . . . . . . . . . Power Chain Reactions . | . . . . . . . . . . . . . . . . . . . . . . Alert | -11 -10 -10 -10 -9 -8 -8 -8 -6 -5 -5 -5 -5 -5 -4 -4 -4 -4 -4 -3 -2 -1 ------- Run | Yrd Mat Min Exi Min Mat Sto Rec Fac Fac Ext Cet Arc Hub Fac Was Fac Arm Lab Res Res Acc Peak Influence 1436 | 10 327 163 . 64 439 560 385 336 269 1436 903 535 515 479 38 452 987 . 444 1030 1258 Initial 692 | . 6 78 . . . 120 185 250 93 120 692 361 116 252 17 26 201 . . 176 617 Average 294 | 2 167 162 . 4 279 346 170 207 129 862 828 459 275 257 33 168 464 . 245 440 786 Maximum Alert Level 4 | . 1 . . . 2 2 1 1 1 4 3 2 2 2 . 2 3 . 2 3 4 Low Security (%) 41 | 100 65 100 . 100 28 20 60 48 69 6 . . 29 25 100 63 4 . 42 4 . Level 1 37 | . 34 . . . 58 42 39 51 30 20 . 36 55 46 . 28 57 . 56 50 . Level 2 10 | . . . . . 13 37 . . . 5 12 63 14 28 . 8 10 . . 27 15 Level 3 8 | . . . . . . . . . . 20 87 . . . . . 27 . . 17 82 Level 4 1 | . . . . . . . . . . 45 . . . . . . . . . . 1 Level 5 . | . . . . . . . . . . . . . . . . . . . . . . High Security . | . . . . . . . . . . . . . . . . . . . . . . Max Security . | . . . . . . . . . . . . . . . . . . . . . . Squads Dispatched 72 | . 5 . . . 1 1 . 11 6 1 . . 10 1 . 9 4 . 9 8 6 Investigation 22 | . 3 . . . 1 1 . . 1 . . . 8 1 . 3 . . 4 . . Extermination 12 | . . . . . . . . 3 2 . . . . . . 3 2 . . 1 1 Reinforcement 28 | . 2 . . . . . . 5 3 . . . 1 . . 3 2 . 4 4 4 Assault 5 | . . . . . . . . . . 1 . . 1 . . . . . . 2 1 Garrison 4 | . . . . . . . . 3 . . . . . . . . . . . 1 . Intercept 1 | . . . . . . . . . . . . . . . . . . . 1 . . Searches Triggered 1 | . . . . . . . . . . . . . . . . 1 . . . . . Construction Impeded 6 | . . . . . . . . 1 . . . . 1 . . . . . 1 2 1 Haulers Reinforced 6 | . . . . . . . . . 1 . . . . . . 2 . . 1 2 . Active Scanning Responses . | . . . . . . . . . . . . . . . . . . . . . . Cargo Convoy Interrupts . | . . . . . . . . . . . . . . . . . . . . . . Stealth | -11 -10 -10 -10 -9 -8 -8 -8 -6 -5 -5 -5 -5 -5 -4 -4 -4 -4 -4 -3 -2 -1 --------- Run | Yrd Mat Min Exi Min Mat Sto Rec Fac Fac Ext Cet Arc Hub Fac Was Fac Arm Lab Res Res Acc Distress Signals 29 | . . . . . 2 1 1 2 . 4 2 . 2 1 . 5 2 . 5 2 . Communications Jammed . | . . . . . . . . . . . . . . . . . . . . . . Distress Signals . | . . . . . . . . . . . . . . . . . . . . . . Times Spotted 418 | . 30 2 . 2 24 28 14 24 24 32 8 2 8 8 6 59 41 1 26 44 35 Peak Tracking Total 12 | . 4 2 . 3 3 3 4 4 4 7 5 1 10 5 2 12 9 1 6 9 9 Tactical Retreats 28 | . . . . 1 1 3 . . 1 2 . . 2 2 . 10 4 . 1 . 1 Traps | -11 -10 -10 -10 -9 -8 -8 -8 -6 -5 -5 -5 -5 -5 -4 -4 -4 -4 -4 -3 -2 -1 ------- Run | Yrd Mat Min Exi Min Mat Sto Rec Fac Fac Ext Cet Arc Hub Fac Was Fac Arm Lab Res Res Acc Traps Triggered 27 | . 1 1 . . . 2 . 1 2 3 . . . 1 . 5 7 . 1 2 1 Indirectly . | . . . . . . . . . . . . . . . . . . . . . . Trap Hack Attempts . | . . . . . . . . . . . . . . . . . . . . . . Triggered . | . . . . . . . . . . . . . . . . . . . . . . Disarmed . | . . . . . . . . . . . . . . . . . . . . . . Reprogrammed . | . . . . . . . . . . . . . . . . . . . . . . Reused 3 | . . . . . . . . . . . . . . . . 3 . . . . . Traps Reconfigurated 16 | . . . . . . . . 12 . . . . . . . 4 . . . . . Traps Extracted . | . . . . . . . . . . . . . . . . . . . . . . Installed . | . . . . . . . . . . . . . . . . . . . . . . Triggered 3 | . . . . . . . . . . . . . . . . 3 . . . . . Machines | -11 -10 -10 -10 -9 -8 -8 -8 -6 -5 -5 -5 -5 -5 -4 -4 -4 -4 -4 -3 -2 -1 ---------- Run | Yrd Mat Min Exi Min Mat Sto Rec Fac Fac Ext Cet Arc Hub Fac Was Fac Arm Lab Res Res Acc Machines Disabled 58 | . . . . . 2 6 2 3 2 1 . 2 2 1 . 16 11 4 2 3 1 Max in Single Turn 5 | . . . . . 1 1 1 2 1 1 . 1 1 1 . 5 1 1 1 1 1 Garrison Access 11 | . . . . . . . . . 2 . . . 2 1 . 1 . . 1 2 2 Network Hub 4 | . . . . . . . . . . . . . 4 . . . . . . . . Energy Cycler 1 | . . . . . . . . . . 1 . . . . . . . . . . . Machines Repaired . | . . . . . . . . . . . . . . . . . . . . . . Machines Dismantled 1 | . . . . . . . . . . . . . . . . . . 1 . . . Machines Sabotaged 4 | . . . . . . . . . . . . . 4 . . . . . . . . Overloaded Fab Kills . | . . . . . . . . . . . . . . . . . . . . . . Hacking | -11 -10 -10 -10 -9 -8 -8 -8 -6 -5 -5 -5 -5 -5 -4 -4 -4 -4 -4 -3 -2 -1 --------- Run | Yrd Mat Min Exi Min Mat Sto Rec Fac Fac Ext Cet Arc Hub Fac Was Fac Arm Lab Res Res Acc Machines Accessed 116 | . 7 1 2 . 5 14 11 6 11 5 . . 11 6 . 13 10 . 4 4 6 Terminals 75 | . 5 . . . 3 12 6 2 7 5 . . 9 4 . 8 8 . 2 1 3 Fabricators 11 | . . . . . . . . 2 2 . . . . 1 . 1 2 . 1 1 1 Repair Stations 2 | . . . . . . . . . . . . . . . . 2 . . . . . Recycling Units 8 | . 2 . . . 1 1 4 . . . . . . . . . . . . . . Scanalyzers 3 | . . . . . 1 . . 1 . . . . . . . 1 . . . . . Garrison Access 13 | . . . . . . 1 . 1 2 . . . 2 1 . 1 . . 1 2 2 Total Hacks 441 | . 16 1 2 . 12 44 21 16 26 12 . . 21 38 . 90 64 . 29 24 25 Successful 232 | . 9 1 2 . 7 21 9 8 13 3 . . 14 20 . 59 32 . 11 13 10 Failed 208 | . 6 . . . 5 23 12 8 13 9 . . 7 18 . 31 32 . 18 11 15 Catastrophic 32 | . . . . . . 6 4 1 3 1 . . 1 3 . 2 3 . 4 1 3 Database Lockouts 1 | . 1 . . . . . . . . . . . . . . . . . . . . Manual 167 | . 8 . 1 . 4 15 16 5 9 7 . . 8 10 . 30 23 . 16 9 6 Terminals 323 | . 14 . . . 8 40 13 7 19 12 . . 17 35 . 60 54 . 15 11 18 Fabricators 40 | . . . . . . . . 5 5 . . . . 2 . 5 10 . 3 9 1 Repair Stations 5 | . . . . . . . . . . . . . . . . 5 . . . . . Recycling Units 11 | . 2 . . . 2 1 6 . . . . . . . . . . . . . . Scanalyzers 23 | . . . . . 2 . . 2 . . . . . . . 19 . . . . . Garrison Access 34 | . . . . . . 3 . 2 2 . . . 4 1 . 1 . . 11 4 6 Terminal Hacks 123 | . 5 1 2 . 3 18 4 1 6 2 . . 5 15 . 25 23 . 4 5 4 Record 1 | . . . 1 . . . . . . . . . . . . . . . . . . Part Schematic 5 | . . . . . . 2 . . . . . . . . . 2 1 . . . . Robot Analysis 12 | . 2 . . . . 4 . 1 . . . . . 1 . . 2 . . 2 . Prototype ID Bank 18 | . 1 . . . . 4 1 . 1 1 . . . 1 . 5 3 . . 1 . Open Door 6 | . . 1 . . . 4 . . . . . . . . . . . . . . 1 Level Access Points 6 | . . . . . . . . . 1 . . . 1 . . 1 1 . 1 1 . Branch Access Points 5 | . . . . . 1 . . . 1 . . . . 1 . 1 . . 1 . . Emergency Access Points 2 | . . . . . . . . . . . . . 1 . . 1 . . . . . Machine Index 3 | . . . . . . . . . . . . . . 1 . . . . 1 . 1 Terminal Index 5 | . . . . . . . . . . 1 . . 1 1 . 1 1 . . . . Garrison Index 1 | . . . . . . . . . . . . . . . . 1 . . . . . Alert Level 14 | . . . . . . 2 . . 1 . . . 1 3 . 3 3 . . . 1 Unreport Threat 18 | . . . . . . 1 1 . . . . . 1 3 . 5 6 . . 1 . Locate Traps 7 | . 1 . . . 1 1 . . . . . . . 1 . 1 2 . . . . Patrol Status 4 | . . . . . . . . . 1 . . . . 2 . . 1 . . . . Recall Extermination 1 | . . . . . . . . . . . . . . . . 1 . . . . . Hauler Manifests 5 | . 1 . . . 1 . . . 1 . . . . 1 . 1 . . . . . Registered Components 1 | . . . . . . . . . . . . . . . . . 1 . . . . Zone Layout 6 | . . . . . . . . . . . . . . . . 2 2 . 1 . 1 Derelict Proto ID Bank 1 | . . . 1 . . . . . . . . . . . . . . . . . . Release Object 2 | . . . . . . . 2 . . . . . . . . . . . . . . Fabricator Hacks 10 | . . . . . . . . 1 2 . . . . 1 . 1 3 . . 1 1 Network Status 6 | . . . . . . . . 1 1 . . . . . . 1 1 . . 1 1 Load Schematic 1 | . . . . . . . . . . . . . . . . . 1 . . . . Build 3 | . . . . . . . . . 1 . . . . 1 . . 1 . . . . Repair Station Hacks 4 | . . . . . . . . . . . . . . . . 4 . . . . . Scan Component 2 | . . . . . . . . . . . . . . . . 2 . . . . . Repair 2 | . . . . . . . . . . . . . . . . 2 . . . . . Recycling Unit Hacks . | . . . . . . . . . . . . . . . . . . . . . . Scanalyzer 22 | . . . . . 1 . . 2 . . . . . . . 19 . . . . . Insert Component 11 | . . . . . 1 . . 1 . . . . . . . 9 . . . . . Analyze 11 | . . . . . . . . 1 . . . . . . . 10 . . . . . Garrison Access Hacks 10 | . . . . . . . . . 2 . . . 1 1 . 1 . . 1 2 2 Seal Access 10 | . . . . . . . . . 2 . . . 1 1 . 1 . . 1 2 2 Unauthorized Hacks 63 | . 4 . . . 3 3 5 4 3 1 . . 8 3 . 9 6 . 6 5 3 Terminals 37 | . 2 . . . 2 2 1 1 3 1 . . 8 2 . 6 2 . 3 1 3 Track 1 | . . . . . . . . . . . . . . . . . . . 1 . . Assimilate 1 | . . . . . . . . . . . . . . . . 1 . . . . . Botnet 26 | . 2 . . . 2 2 1 1 3 1 . . 2 2 . 4 2 . 1 1 2 Disrupt 1 | . . . . . . . . . . . . . . . . . . . . . 1 Operators 2 | . . . . . . . . . . . . . . . . 1 . . 1 . . Sabotage 6 | . . . . . . . . . . . . . 6 . . . . . . . . Fabricators 18 | . . . . . . . . 3 . . . . . 1 . 3 4 . 3 4 . Report 6 | . . . . . . . . 1 . . . . . 1 . 1 1 . 1 1 . Prioritize 2 | . . . . . . . . . . . . . . . . . 2 . . . . Liberate 5 | . . . . . . . . 1 . . . . . . . 1 1 . 1 1 . Fabnet 1 | . . . . . . . . . . . . . . . . . . . . 1 . Haulers 4 | . . . . . . . . 1 . . . . . . . 1 . . 1 1 . Repair Stations . | . . . . . . . . . . . . . . . . . . . . . . Recycling Units 8 | . 2 . . . 1 1 4 . . . . . . . . . . . . . . Tunnel 8 | . 2 . . . 1 1 4 . . . . . . . . . . . . . . Scanalyzers . | . . . . . . . . . . . . . . . . . . . . . . Garrison Access . | . . . . . . . . . . . . . . . . . . . . . . Data Cores Recovered 3 | . . . . . 2 . . . . . . . . . . 1 . . . . . Used . | . . . . . . . . . . . . . . . . . . . . . . Hacking Detections 80 | . 5 . . . 3 11 6 4 9 5 . . 6 4 . 11 8 . 2 2 4 Full Trace Events 7 | . . . . . . 1 1 . 1 . . . . 1 . 3 . . . . . Feedback Events 2 | . . . . . . . . . . . . . . . . 2 . . . . . Corruption 1 | . . . . . . . . . . . . . . . . 1 . . . . . Hackware Fried 1 | . . . . . . . . . . . . . . . . 1 . . . . . Feedback Blocked . | . . . . . . . . . . . . . . . . . . . . . . Robot Schematics Acquired . | . . . . . . . . . . . . . . . . . . . . . . Robots Built . | . . . . . . . . . . . . . . . . . . . . . . Authchips . | . . . . . . . . . . . . . . . . . . . . . . Time . | . . . . . . . . . . . . . . . . . . . . . . Total Robot Build Rating . | . . . . . . . . . . . . . . . . . . . . . . Part Schematics Acquired 14 | . . . . . . 2 . 1 . . . . . . . 10 1 . . . . Parts Built 5 | . . . . . . . . . 1 . . . . 2 . . 2 . . . . Authchips 1 | . . . . . . . . . . . . . . . . . 1 . . . . Time 190 | . . . . . . . . . 106 . . . . 69 . . 15 . . . . Total Part Build Rating 34 | . . . . . . . . . 6 . . . . 18 . . 10 . . . . Parts Repaired 2 | . . . . . . . . . . . . . . . . 2 . . . . . Time 94 | . . . . . . . . . . . . . . . . 94 . . . . . Parts Recycled . | . . . . . . . . . . . . . . . . . . . . . . Recycled Matter . | . . . . . . . . . . . . . . . . . . . . . . Retrieved Matter . | . . . . . . . . . . . . . . . . . . . . . . Retrieved Components . | . . . . . . . . . . . . . . . . . . . . . . Parts Scanalyzed 10 | . . . . . 1 . . 1 . . . . . . . 8 . . . . . Part Schematics Acquired 9 | . . . . . . . . 1 . . . . . . . 8 . . . . . Parts Damaged 2 | . . . . . . . . . . . . . . . . 2 . . . . . Bothacking | -11 -10 -10 -10 -9 -8 -8 -8 -6 -5 -5 -5 -5 -5 -4 -4 -4 -4 -4 -3 -2 -1 ------------ Run | Yrd Mat Min Exi Min Mat Sto Rec Fac Fac Ext Cet Arc Hub Fac Was Fac Arm Lab Res Res Acc Used RIF Installer . | . . . . . . . . . . . . . . . . . . . . . . Robots Hacked . | . . . . . . . . . . . . . . . . . . . . . . Non-combat . | . . . . . . . . . . . . . . . . . . . . . . Combat . | . . . . . . . . . . . . . . . . . . . . . . Robot Hacks Applied . | . . . . . . . . . . . . . . . . . . . . . . Relay Couplers Released 2 | . . . . . . . . . . . . . 2 . . . . . . . . Machine Destruction 2 | . . . . . . . . . . . . . 2 . . . . . . . . Fabnet Peak Effective % 3 | . . . . . . . . . . . . . . . . . . . . . 3 Robots Rewired 43 | . . . . . . . 12 . . 25 . . . . . . 6 . . . . Allies Hacked 4 | . . . . . . . . . . 3 . . . . . . 1 . . . . Hacks Repelled . | . . . . . . . . . . . . . . . . . . . . . . Allies | -11 -10 -10 -10 -9 -8 -8 -8 -6 -5 -5 -5 -5 -5 -4 -4 -4 -4 -4 -3 -2 -1 -------- Run | Yrd Mat Min Exi Min Mat Sto Rec Fac Fac Ext Cet Arc Hub Fac Was Fac Arm Lab Res Res Acc Total Allies 93 | . . . . 5 . 10 12 . . 27 . . . . 20 3 16 . . . . Largest Group 19 | . . . . 5 5 10 15 15 . 16 14 8 7 . 19 4 13 . . . . Highest-Rated Group 684 | . . . . 78 78 173 210 210 . 504 445 241 216 . 684 163 625 . . . . Highest-Rated Ally 58 | . . . . 31 31 29 29 21 . 39 39 39 39 . 50 46 58 . . . . Total Orders 10 | . . . . . . . . 5 1 . . . . . . 4 . . . . . ROAM 1 | . . . . . . . . 1 . . . . . . . . . . . . . EXPLORE 8 | . . . . . . . . 4 1 . . . . . . 3 . . . . . RETURN 1 | . . . . . . . . . . . . . . . . 1 . . . . . Ally Attacks 413 | . . . . 5 28 2 66 29 . 108 41 4 52 . 16 10 52 . . . . Total Damage 7772 | . . . . 63 324 29 771 580 . 2119 813 81 879 . 495 236 1382 . . . . Kills 56 | . . . . 1 5 . 7 3 . 15 6 2 10 . 2 1 4 . . . . Allies Corrupted 3 | . . . . . . . . . . . . . . . . . 3 . . . . Allies Melted 1 | . . . . . . . . . . . . . . . . . 1 . . . . Intel | -11 -10 -10 -10 -9 -8 -8 -8 -6 -5 -5 -5 -5 -5 -4 -4 -4 -4 -4 -3 -2 -1 ------- Run | Yrd Mat Min Exi Min Mat Sto Rec Fac Fac Ext Cet Arc Hub Fac Was Fac Arm Lab Res Res Acc Robot Analysis Total 12 | . 2 . . . . 4 . 1 . . . . . 1 . . 2 . . 2 . Derelict Logs Recovered 1 | . . . . 1 . . . . . . . . . . . . . . . . . Drone Launches 17 | . . . . . . . . 7 6 . . . . . . 4 . . . . . Drone Recoveries 9 | . . . . . . . . 3 3 . . . . . . 3 . . . . . Exploration | -11 -10 -10 -10 -9 -8 -8 -8 -6 -5 -5 -5 -5 -5 -4 -4 -4 -4 -4 -3 -2 -1 ------------- Run | Yrd Mat Min Exi Min Mat Sto Rec Fac Fac Ext Cet Arc Hub Fac Was Fac Arm Lab Res Res Acc Turns Passed 20001 | 87 1170 329 474 611 879 1601 1964 2225 1668 507 287 627 334 496 372 1304 1243 399 1374 1045 1005 Spaces Moved 13620 | 39 571 194 301 385 498 712 818 1087 1092 472 184 89 550 813 520 1810 1153 220 1061 579 472 Core 2 | 2 . . . . . . . . . . . . . . . . . . . . . Treads 6740 | 37 571 194 209 . 233 16 443 . 347 . 1 89 550 813 520 1810 697 . . . 210 Legs 1925 | . . . . . . . 296 656 . . 70 . . . . . 366 . . 275 262 Wheels 1621 | . . . 92 385 265 696 46 137 . . . . . . . . . . . . . Hover 1903 | . . . . . . . 33 195 . . . . . . . . 90 220 1061 304 . Flight 1429 | . . . . . . . . 99 745 472 113 . . . . . . . . . . Fastest Speed 37 | 50 160 160 140 80 110 155 140 127 40 37 40 40 40 40 40 40 40 100 100 65 135 Average Speed 103 | 154 160 160 153 144 148 172 207 172 109 39 40 40 40 40 40 40 44 100 100 125 153 Slowest Speed 348 | 160 160 160 160 155 240 240 348 240 138 40 40 40 40 40 40 40 100 100 100 148 174 Overloaded Moves 1 | . . . . . . . . . . 1 . . . . . . . . . . . Propulsion Burnouts . | . . . . . . . . . . . . . . . . . . . . . . Robots Hopped 7 | . . . . . . . . . . 7 . . . . . . . . . . . Cave-ins Triggered . | . . . . . . . . . . . . . . . . . . . . . . Exploration Rate (%) 55 | 4 78 32 70 78 49 95 98 37 39 75 56 72 48 23 94 51 70 92 35 18 13 Regions Visited 21 Branch Regions 11 Pre-discovered Areas 10 | . 2 1 1 . 1 1 4 . . . . . . . . . . . . . . Known Exits Taken 7 | . . . . . 1 . . . 1 . . . 1 . . 1 . 1 1 1 . Unknown Exits Taken 12 | 1 1 1 1 1 . 1 1 1 . 1 1 1 . . . . 1 . . . . Scrap Searched 3 | . . 1 . 2 . . . . . . . . . . . . . . . . . Spaces Dug 300 | . . . . . . 2 . 23 11 . . . 17 29 . 110 4 . 45 37 22 Terrain Destroyed 948 | . . . . . 5 3 2 76 28 56 11 . 24 53 13 166 125 3 90 136 157 Melee 2 | . . . . . . 2 . . . . . . . . . . . . . . . Projectile 365 | . . . . . 5 1 2 10 28 23 11 . 24 12 13 60 46 3 20 68 39 AOE 581 | . . . . . . . . 66 . 33 . . . 41 . 106 79 . 70 68 118 Terrain Rammed . | . . . . . . . . . . . . . . . . . . . . . . Walls Destroyed . | . . . . . . . . . . . . . . . . . . . . . . Machines Disabled . | . . . . . . . . . . . . . . . . . . . . . . Actions | -11 -10 -10 -10 -9 -8 -8 -8 -6 -5 -5 -5 -5 -5 -4 -4 -4 -4 -4 -3 -2 -1 --------- Run | Yrd Mat Min Exi Min Mat Sto Rec Fac Fac Ext Cet Arc Hub Fac Was Fac Arm Lab Res Res Acc Total 18489 | 53 707 207 313 429 587 983 1061 1387 1507 742 380 674 641 954 640 2285 1782 359 1324 813 661 Wait 2813 | 3 44 4 . 21 22 120 73 190 292 95 171 574 66 82 55 293 449 60 88 79 32 Move 13589 | 38 570 193 300 384 497 711 817 1086 1091 460 183 88 549 813 519 1809 1152 219 1060 579 471 Hop 4 | . . . . . . . . . . 4 . . . . . . . . . . . Pick Up 113 | . 8 4 3 8 10 7 2 11 11 2 2 2 . 8 5 10 8 5 1 2 4 Fast Attach 179 | 7 . . . 3 13 14 2 6 8 . . . . . 1 12 7 12 52 22 20 Attach 46 | . 1 . . 2 2 . . 6 2 1 1 . . 2 2 5 2 2 6 6 6 Detach 37 | . . . 1 . 3 1 4 5 1 1 . . . 1 2 3 2 1 6 4 2 Swap 105 | . 6 . 4 3 5 26 . 10 10 1 . 2 1 5 2 20 1 1 2 . 6 Drop 241 | . 5 2 5 3 11 20 13 9 18 2 3 2 . 8 3 19 9 13 51 21 24 Fire 1041 | 5 73 4 . 5 24 74 31 58 71 47 20 6 25 35 51 113 115 30 58 100 96 Melee 9 | . . . . . . 9 . . . . . . . . . . . . . . . Ram 1 | . . . . . . 1 . . . . . . . . . . . . . . . Kick . | . . . . . . . . . . . . . . . . . . . . . . Crush 1 | . . . . . . . . . . . . . . . . 1 . . . . . Escape Stasis 19 | . . . . . . . . 5 2 12 . . . . . . . . . . . Rewire 273 | . . . . . . . 119 . . 117 . . . . . . 37 . . . . Trap . | . . . . . . . . . . . . . . . . . . . . . . Miscellaneous 18 | . . . . . . . . 1 1 . . . . . . . . 16 . . . Route ------- -11/Scrapyard -10/Materials (discovered 3 exits: [*Mat x2] / *Min) -10/Mines -10/Exiles -9/Mines -8/Materials (discovered 2 exits: [*Fac] / *Sto) -8/Storage (discovered 2 exits: [*Fac] / *Rec) -8/Recycling -6/Factory (discovered 2 exits: *Fac / *Low) -5/Factory (discovered 8 exits: *Fac x4 / Upp x2 / *Ext x2) -5/Extension (discovered 3 exits: *Fac x2 / [*Cet]) -5/Cetus (discovered 2 exits: *Fac / [*Arc]) -5/Archives (discovered 2 exits: *Fac / *Hub) -5/Hub_04(d) (discovered 4 exits: *Fac x4) -4/Factory (discovered 3 exits: Upp x2 / Arm) -4/Waste -4/Factory (discovered 7 exits: *Res x4 / Upp x2 / *Arm) -4/Armory (discovered 3 exits: *Res x2 / *Lab) -4/Lab -3/Research (discovered 5 exits: *Res x3 / *Qua x2) -2/Research (discovered 3 exits: *Acc x3) -1/Access To Fleet Rendezvous History --------- Turn | Location | Event 28 | -11/Scrapyard | Discovered new exit (range 15) 88 | -11/Scrapyard | Entered Materials 310 | -10/Materials | Build established: Mutant 370 | -10/Materials | Discovered new exit (range 4) 529 | -10/Materials | Discovered new exit (range 7) 788 | -10/Materials | Central database locked down 840 | -10/Materials | Discovered new exit (range 16) 1258 | -10/Materials | Entered Mines 1409 | -10/Mines | Met a Derelict who couldn't figure out how to use a Trap Extractor 1418 | -10/Mines | Core integrity fell below 50% 1480 | -10/Mines | Learned location of Storage (-8) 1502 | -10/Mines | Deemed a non-threat by the Exiles lab entrance 1502 | -10/Mines | Discovered new exit (range 5) 1587 | -10/Mines | Entered Exiles 1626 | -10/Exiles | Met 8R-AWN 1659 | -10/Exiles | Met EX-HEX 1707 | -10/Exiles | Met EX-BIN 1726 | -10/Exiles | Aligned with FarCom system 1728 | -10/Exiles | Given EX-Vault access code 1765 | -10/Exiles | Opened EX-Vault 1773 | -10/Exiles | Found Trap Reconfigurator 1808 | -10/Exiles | Warned to stay clear of 0b10 Research branches 1853 | -10/Exiles | Met EX-DEC 1859 | -10/Exiles | Learned location of Zion (-6) 2048 | -10/Exiles | Discovered new exit (range 10) 2061 | -10/Exiles | Left Exiles lab with Trap Reconfigurator 2061 | -10/Exiles | Entered Mines 2100 | -9/Mines | Learned Materials emergency access door positions 2510 | -9/Mines | Assisted by bots powering up and referring to "LRC-V3" 2547 | -9/Mines | Discovered new exit (range 2) 2595 | -9/Mines | Found a damaged Exp. Sensor Array with a note attached 2598 | -9/Mines | Found Prototype Device 2651 | -9/Mines | System corruption reached 10% 2672 | -9/Mines | Entered Materials 2672 | -8/Materials | Accompanied by 5 allies 2672 | -8/Materials | Evolved 4 slots: Power x1, Propulsion x1, Utility x1, Weapon x1 2677 | -8/Materials | Led the pair of lost Derelicts to an unsafe place 2871 | -8/Materials | Discovered new exit (range 11) 3003 | -8/Materials | Discovered new exit (range 15) 3151 | -8/Materials | Build established: Skirmisher 3389 | -8/Materials | Identified exit to Storage 3551 | -8/Materials | Entered Storage 4199 | -8/Storage | Discovered new exit (range 6) 4754 | -8/Storage | Assisted by bots powering up and referring to "LRC-V3" 5080 | -8/Storage | Build established: Commander-Skirmisher 5134 | -8/Storage | Used back door to open Recycling access 5134 | -8/Storage | Discovered new exit (range 4) 5152 | -8/Storage | Entered Recycling 5152 | -8/Recycling | Accompanied by 8 allies 5423 | -8/Recycling | Discovered new exit (range 12) 6148 | -8/Recycling | Scanned before Scraplab entrance 6170 | -8/Recycling | Entered Scraplab 6187 | -8/Recycling | Angered Scraplab inhabitants 6189 | -8/Recycling | Found Prototype Device 6189 | -8/Recycling | Identified Scrap Engine 6230 | -8/Recycling | Lost 3 allies 6715 | -8/Recycling | Build established: Commander-Construct 7116 | -8/Recycling | Entered Factory 7116 | -6/Factory | Accompanied by 15 allies 7116 | -6/Factory | Evolved 4 slots: Propulsion x2, Utility x2 7185 | -6/Factory | Garrison activated, responded to threat 7222 | -6/Factory | Lost 3 allies 7491 | -6/Factory | Build established: Construct 8436 | -6/Factory | Identified Exp. Sensor Array 9068 | -6/Factory | Discovered new exit (range 5) 9080 | -6/Factory | Identified exit to Lower Caves 9098 | -6/Factory | Found Prototype Launcher 9098 | -6/Factory | Identified Rocket Array 9332 | -6/Factory | Discovered new exit (range 7) 9341 | -6/Factory | Entered another Factory area 9341 | -5/Factory | Evolved 2 slots: Propulsion x1, Utility x1 9380 | -5/Factory | Discovered new exit (range 6) 9774 | -5/Factory | Fabricated Adv. Hacking Suite (x1) 9902 | -5/Factory | Identified exit to Factory 10446 | -5/Factory | Identified exit to Upper Caves 10446 | -5/Factory | Identified exit to Extension 11009 | -5/Factory | Entered Extension 11044 | -5/Extension | Energy Cycler disabled 11045 | -5/Extension | Rescued a captive Derelict 11046 | -5/Extension | Rescued a captive Derelict 11046 | -5/Extension | Rescued a captive Derelict 11048 | -5/Extension | Rescued a captive Derelict 11051 | -5/Extension | Rescued a captive Derelict 11062 | -5/Extension | Rescued a captive Derelict 11157 | -5/Extension | Spotted B-75 Beast 11159 | -5/Extension | Spotted B-75 Beast 11161 | -5/Extension | Discovered exit to Factory (range 16) 11309 | -5/Extension | First assault squad dispatched 11378 | -5/Extension | Build established: Commander-Construct 11405 | -5/Extension | Destroyed 7 combat bots 11414 | -5/Extension | Lost 5 allies 11437 | -5/Extension | Discovered exit to Factory (range 10) 11437 | -5/Extension | Discovered new exit (range 6) 11516 | -5/Extension | Entered Cetus 11516 | -5/Cetus | Accompanied by 14 allies 11529 | -5/Cetus | Spotted Cetus Guard 11529 | -5/Cetus | Spotted Cetus Guard 11529 | -5/Cetus | Spotted Cetus Guard 11529 | -5/Cetus | Spotted Cetus Guard 11535 | -5/Cetus | Allies destroyed Cetus Guard 11539 | -5/Cetus | Destroyed Cetus Guard 11552 | -5/Cetus | Destroyed Cetus Guard 11552 | -5/Cetus | Allies destroyed Cetus Guard 11580 | -5/Cetus | Lost 5 allies 11599 | -5/Cetus | Discovered new exit (range 15) 11636 | -5/Cetus | Destroyed Cetus Guard 11641 | -5/Cetus | Spotted Cetus Guard 11641 | -5/Cetus | Spotted Cetus Guard 11645 | -5/Cetus | Destroyed Cetus Guard 11652 | -5/Cetus | Allies destroyed Cetus Guard 11654 | -5/Cetus | Discovered exit to Factory (range 16) 11656 | -5/Cetus | Met Revision 17 11803 | -5/Cetus | Entered Archives 11803 | -5/Archives | Accompanied by 8 allies 11852 | -5/Archives | Discovered exit to Factory (range 16) 12409 | -5/Archives | Discovered new exit (range 16) 12430 | -5/Archives | Entered Hub_04(d) 12430 | -5/Hub_04(d) | Accompanied by 7 allies 12452 | -5/Hub_04(d) | Discovered exit to Factory (range 8) 12663 | -5/Hub_04(d) | Network Hub disabled 12676 | -5/Hub_04(d) | Network Hub disabled 12685 | -5/Hub_04(d) | Network Hub disabled 12697 | -5/Hub_04(d) | Spotted Lightning 12698 | -5/Hub_04(d) | Spotted Lightning 12724 | -5/Hub_04(d) | Network Hub disabled 12726 | -5/Hub_04(d) | Lost 4 allies 12764 | -5/Hub_04(d) | Entered Factory 12764 | -4/Factory | Evolved 2 slots: Power x1, Utility x1 12792 | -4/Factory | Build established: Hacker-Construct 12868 | -4/Factory | Identified exit to Upper Caves 12868 | -4/Factory | Identified exit to Armory 13019 | -4/Factory | Fabricated Lgt. Quantum Reactor (x2) 13078 | -4/Factory | Found Prototype Processor 13260 | -4/Factory | Sucked down chute 13260 | -4/Factory | Entered Waste 13261 | -4/Waste | Met a frightened Derelict 13270 | -4/Waste | Spotted C-40 Crusher 13272 | -4/Waste | Spotted C-40 Crusher 13275 | -4/Waste | Spotted C-40 Crusher 13277 | -4/Waste | Spotted C-40 Crusher 13288 | -4/Waste | Allies destroyed C-40 Crusher 13296 | -4/Waste | Destroyed C-40 Crusher 13304 | -4/Waste | Allies destroyed C-40 Crusher 13319 | -4/Waste | Spotted C-40 Crusher 13320 | -4/Waste | Destroyed C-40 Crusher 13384 | -4/Waste | Spotted C-40 Crusher 13430 | -4/Waste | Destroyed C-40 Crusher 13442 | -4/Waste | Destroyed C-40 Crusher 13501 | -4/Waste | Warlord forces began an assault 13558 | -4/Waste | Discovered new exit (range 12) 13568 | -4/Waste | Found Prototype Launcher 13568 | -4/Waste | Identified Enh. Gamma Bomb Array 13632 | -4/Waste | Entered Factory 13632 | -4/Factory | Accompanied by 1 ally 13655 | -4/Factory | Allied Derelicts emerged from ambush trap array 13923 | -4/Factory | Identified exit to Research 14388 | -4/Factory | Spotted B-86 Titan 14395 | -4/Factory | Identified Exp. Signal Interpreter 14715 | -4/Factory | Repaired Broken Imp. Armor Integrity Analyzer 14765 | -4/Factory | Adv. Hacking Suite fried by hacking feedback 14882 | -4/Factory | Search patrols dispatched 14913 | -4/Factory | Repaired Broken Biometal Heavy Treads 14936 | -4/Factory | Entered Armory 14937 | -4/Armory | Met VL-GR5, who suggested a friendly competition 14995 | -4/Armory | Found Fusion Bomb Launcher 15075 | -4/Armory | Assisted by bots powering up and referring to "LRC-V3" 15158 | -4/Armory | Lost 5 allies 15205 | -4/Armory | Discovered exit to Research (range 3) 15285 | -4/Armory | Congratulated by VL-GR5 on winning the competition 15292 | -4/Armory | Found Prototype Processor 15486 | -4/Armory | System corruption reached 10% 15490 | -4/Armory | Found Prototype Processor 15490 | -4/Armory | Identified VL-GR5's Timing Chip (x2) 15495 | -4/Armory | Found Prototype Device 15495 | -4/Armory | Identified VL-GR5's Exoskeleton "Deathgrip" 15497 | -4/Armory | Attached VL-GR5's Exoskeleton "Deathgrip", gained temporary slots: Weapon x3 15529 | -4/Armory | Lost 3 allies 15753 | -4/Armory | Fabricated Hvy. Flak Cannon (x2) 15844 | -4/Armory | Discovered new exit (range 4) 16007 | -4/Armory | Build established: Construct 16179 | -4/Armory | Entered Lab 16179 | -4/Lab | Discovered exit to Research (range 9) 16191 | -4/Lab | Unable to decrypt terminal 16225 | -4/Lab | Gained access to the hidden lab's interior 16232 | -4/Lab | Detected by scanners 16241 | -4/Lab | Confronted by A5 16287 | -4/Lab | Destroyed A5 16332 | -4/Lab | Found Prototype Energy Gun 16332 | -4/Lab | Identified Tachyon Dispersion Ray 16336 | -4/Lab | Found Prototype Protection 16336 | -4/Lab | Identified Exp. Powered Armor 16381 | -4/Lab | Found Alien Artifact 16381 | -4/Lab | Identified Core Regenerator 16381 | -4/Lab | Used Core Regenerator, restored core integrity (+287) 16398 | -4/Lab | Found Alien Artifact 16398 | -4/Lab | Identified Core Reset Matrix 16398 | -4/Lab | Used Core Reset Matrix 16402 | -4/Lab | Sensed 2 artifacts in vicinity 16408 | -4/Lab | Found Prototype Hackware 16408 | -4/Lab | Identified Exp. System Shield 16410 | -4/Lab | Discovered exit to Research (range 7) 16412 | -4/Lab | Found Prototype Hackware 16412 | -4/Lab | Identified Exp. Hacking Suite 16444 | -4/Lab | Found Integrated Mediator 16444 | -4/Lab | Installed Integrated Mediator, increased core attachment efficiency 16451 | -4/Lab | Found Transdimensional Reconstructor 16478 | -4/Lab | Found Prototype Hackware 16478 | -4/Lab | Identified Quantum Router 16578 | -4/Lab | Entered Research 16578 | -3/Research | Evolved 2 slots: Utility x2 16706 | -3/Research | Build established: Hacker-Construct 16778 | -3/Research | Revision forces began assault on 0b10 16833 | -3/Research | Met up with Revision 17++ 16846 | -3/Research | Discovered new exit (range 14) 16993 | -3/Research | Identified exit to Quarantine 17081 | -3/Research | Spotted B-86 Titan 17086 | -3/Research | Destroyed B-86 Titan 17240 | -3/Research | Identified exit to Research 17278 | -3/Research | Research terminal network offline 17355 | -3/Research | Intercept squad dispatched 17365 | -3/Research | Spotted Striker 17365 | -3/Research | Destroyed Striker 17375 | -3/Research | Spotted Executioner 17803 | -3/Research | Spotted Striker 17805 | -3/Research | Spotted Striker 17950 | -3/Research | Spotted Striker 17952 | -3/Research | Entered another Research area 17952 | -2/Research | Evolved 2 slots: Utility x2 18036 | -2/Research | Found Unknown Device 18036 | -2/Research | Identified Quantum Capacitor 18208 | -2/Research | Spotted B-90 Cyclops 18211 | -2/Research | Identified exit to Access 18284 | -2/Research | Destroyed B-90 Cyclops 18326 | -2/Research | Found Prototype Device 18326 | -2/Research | Identified Exp. Thermal Shield 18356 | -2/Research | Found Exp. Hacking Suite 18702 | -2/Research | First assault squad dispatched 18806 | -2/Research | Garrison activated, responded to threat 18862 | -2/Research | Destroyed 9 combat bots 18997 | -2/Research | Entered Access 18997 | -1/Access | Evolved 2 slots: Propulsion x1, Utility x1 19747 | -1/Access | First assault squad dispatched 19849 | -1/Access | Discovered new exit (range 6) 19988 | -1/Access | System corruption reached 10% 20002 | *** | Heading to fleet! Last Messages --------------- 19999_ Acquired 1 matter. 19999_ Acquired 13 matter. 19999_ Acquired 5 matter. 19999_ Penetrated by Slug. 19999_ Slug penetrates Wall. 19999_ K-01 Serf collects debris. 20000_ Wall collapses. 20000_ G-73 Enforcer destroyed. 20000_ Destroyed Adv. Heat Sink. 20000_ K-01 Serf destroyed. 20000_ Penetrated by Slug. 20001_ Acquired 18 matter. 20001_ Acquired 1 matter. 20001_ The unstable cave ceiling collapses. 20001_ Fusion Bomb Launcher destroyed. 20001_ K-01 Serf collects debris. 20001_ Hvy. Thermic Nova Construct/C destroyed. 20001_ Hvy. Thermic Nova Construct/C core remains intact and functional. 20002_ The unstable cave ceiling collapses. Map ----- +----------------------------------------------------+ | !!! [[+%%####################??#?#??# #? ? ?? | | !! !!#= ####?#?####?#########?????????? #? | | !! !#! #?###?#?#??##?#??####??#???#??# ? ? ? | | ########### *##?#######?##??###?#?#?#?##? #? | | #########"# ####################???##?????#??? ?? | | # # ##??? ????????????? ???? | | # # ##?#???????????????????? | | # # """ ##??? ?????????????????? | | # # ""T"" ##?#???????????????????? | | # # "" "" ###?#??????????????????? | | # # ? ? ? ??? #??????????????????? | | # # ? ???????#???????????????????? | | # #?? ?? ?? ??????????????????????????? | | # # ? ? ?????????????????????????? | | "" "" + + ? ? ? ?? ???????????????????????? | | ""R"" # # h ????? ??##????????????????????? | | """" # # h ? ??? ??#?????????????????????? | | ########### #?#???#???????????????????????? | | ???##?? ?## = # #??#?#??????????????????????? | | ??### ? ?# # ##########??????????????????? | | ????#??? ?#! "??????????????????? | | ???+ ???# ! == "????BB????????????? | | ??? # ? ?# Y "????BB????????????? | | ??? ??? "??????????????????? | | ????? ??? "" "??????????????????? | | ????? ?? % @" "??????????????????? | | ????????? "??????????????????? | | ?????????# * g "????BB????????????? | | ?????????? = "????BB????????????? | | ?????????? [ "??????????????????? | | ??????????# = ##########??????????????????? | | ??????????# # ##???????????????????????????? | | ??????????# x #?????????????????????????????? | | ??????????# #k #??????????????????????????????? | | ??????????# #####???????????????????????????????? | | ??????????# #???????????????????????????????????? | | ??????????# #???????????????????????????????????? | | ??????????# ???????????????????????????????????? | | ??????????# ???????????????????????????????????? | | ??????????#+##????g??????????????????????????????? | | ?????????????????????????????h???????????????????? | | ????????????????????????????h????????????????????? | | ?????????????????????????????????????????????????? | | ?????????????????????????????????????????????????? | | ?????????????????????????????????????????????????? | | ?????????????????????????????????????????????????? | | ?????????????????????????????????????????????????? | | ?????????????????????????????????????????????????? | | ?????????????????????????????????????????????????? | | ?????????????????????????????????????????????????? | +----------------------------------------------------+ Best States ------------- Heat Dissipation 104 Coolant Potential 100 Energy Generation 107 Energy Capacity 1036 Matter Stores 300 Matter Capacity 600 Sight Range 16 Terrain Scan Range 24 Terrain Scan Density 210 Jamming Range 16 Base Temperature (-) 400 Corruption Block 20 Armor Coverage 625 Resistance: KI 25 Resistance: TH 30 Point Defense Rating 240 Evasion (%) 67 Targeting Accuracy 8 Core Analysis 6 Recoil Reduction 5 Kinecelleration 40 Offensive Hacking 46 Defensive Hacking 25 Authchip Count 4 Item Schematics ----------------- None Robot Schematics ------------------ None Fabricated ------------ Adv. Hacking Suite | x1 | -5/Factory | Preloaded Lgt. Quantum Reactor | x2 | -4/Factory | Preloaded Hvy. Flak Cannon | x2 | -4/Armory | Authchip Alien Tech Used ----------------- Core Regenerator Core Reset Matrix Integrated Mediator Achievements -------------- 404 Challenges ------------ None Game ------ Seed ConstructControlProcessor Manual? 0 Play Time 04:34:56 Cumulative 342.6 hours Start 2025.03.07 @ 17:25:50 End 2025.03.08 @ 11:48:14 Sessions 3 Manual Loads 0 Difficulty Rogue Special Mode None Game No. 78 Rogue 78 Adventurer 0 Explorer 0 Win Type 2 Total 21 Types 12/1/5/1/0/0/0/1/1 Lore% 79 Gallery% 83 Achievement% 77 Wizard Run 0 Options --------- Layout 1 ASCII 0 Keyboard 0 Movement Mouse Keybinds 0 Fullscreen 1 Font 24/Smallcaps Map View 50x35 Zoom Use 0% Tactical HUD 1 Map Filters NONE Filters NONE Steam 1 RUN: d472de4f-cb0f-4e6d-af75-80ed10bdd2cd